Cogmind - Beta 14 @@@ ROGUE MODE // 2024.09.17 @ 03:37:34 Player: Dull Result: Destroyed by G-47 Trooper with Particle Gun Performance ------------- Evolutions (0) 0 Regions Visited (1) 200 Robots Destroyed (8) 40 Value Destroyed (188) 188 Prototype IDs (0) 0 Alien Tech Used (0) 0 Bonus (0) 0 TOTAL SCORE: 428 Bonus ------- None Cogmind --------- Core Integrity 0/250 Matter 300/300 Energy 100/100 System Corruption 7% Temperature Cool (9) Movement Core (1350) Ox26 Location -10/Materials Parts ------- > --- POWER (1) -------- (None) > --- PROPULSION (2) --- Light Treads > --- UTILITY (2) ------ Huge Storage Unit Seismic Detector > --- WEAPON (2) ------- (None) > --- INVENTORY (25) --- Light Ion Engine Light Treads Light Treads Wheel Huge Storage Unit Shield Generator Peak State ------------ > --- POWER ------------ Light Ion Engine > --- PROPULSION ------- Aluminum Leg Aluminum Leg > --- UTILITY ---------- Small Storage Unit Seismic Detector > --- WEAPON ----------- Medium Laser Grenade Launcher > --- INVENTORY -------- Light Ion Engine Light Ion Engine Light Treads Light Treads Wheel [Rating: 7] Favorites ----------- Power Light Ion Engine Engine Light Ion Engine Propulsion Light Treads Treads Light Treads Leg Aluminum Leg Utility Seismic Detector Device Seismic Detector Storage Huge Storage Unit Weapon Medium Laser Energy Gun Medium Laser Launcher Grenade Launcher Build | -11 -10 ------- Run | Yrd Mat Slots Evolved . | . . Power . | . . Propulsion . | . . Utility . | . . Weapon . | . . Parts Attached 6 | 1 5 Power 1 | . 1 Engine 1 | . 1 Core . | . . Reactor . | . . Propulsion 2 | . 2 Treads 2 | . 2 Leg . | . . Wheel . | . . Hover . | . . Flight . | . . Utility 2 | 1 1 Device 1 | 1 . Storage 1 | . 1 Processor . | . . Hackware . | . . Protection . | . . Artifact . | . . Weapon 1 | . 1 Energy Gun . | . . Energy Cannon . | . . Ballistic Gun . | . . Ballistic Cannon . | . . Launcher 1 | . 1 Special Weapon . | . . Impact Weapon . | . . Slashing Weapon . | . . Piercing Weapon . | . . Special Melee Weapon . | . . Unidentified Prototypes . | . . Parts Lost 5 | . 5 Power 2 | . 2 Propulsion 1 | . 1 Utility . | . . Weapon 2 | . 2 Highest Loss Streak 3 | . 3 To Critical Strikes . | . . Average Slot Usage (%) 87 | . 87 Engine 12 | . 12 Treads 25 | . 25 Leg 1 | . 1 Device 14 | . 14 Storage 14 | . 14 Energy Gun 13 | . 13 Launcher 4 | . 4 Peak Build Rating 7 | 6 7 Average Rating 6 | 5 6 On Entrance 6 | 6 6 Naked Turns . | . . Heaviest Build 89 | 12 89 Greatest Support 40 | 20 40 Greatest Overweight (x) 4 | . 4 Average Overweight (x) 1 | . 1 Largest Inventory Capacity 25 | 8 25 Average Capacity 22 | 8 24 Most Carried 7 | 6 7 Average Carried 4 | 4 4 Final Capacity 25 | 8 25 Final Carried 6 | 5 6 Class Distribution -------------------- 100% | Mutant Dominant Class ---------------- Mutant | -10/Materials Resources | -11 -10 ----------- Run | Yrd Mat Matter Collected 260 | 210 50 Remotely . | . . Salvage Created 295 | 25 270 Parts 19 | 4 15 Haulers Intercepted 1 | . 1 Recyclers Shooed 1 | . 1 Parts Field Recycled . | . . Retrieved Matter . | . . Parts Self-Destructed . | . . Prevented . | . . Kills | -11 -10 ------- Run | Yrd Mat Combat Hostiles Destroyed 4 | . 4 Guns 4 | . 4 Classes Destroyed 5 | 1 4 Worker 1 | . 1 Tunneler 1 | 1 . Hauler 1 | . 1 Watcher 1 | . 1 Grunt 4 | . 4 Best Kill Streak 2 | 1 2 Combat Bots Only 1 | . 1 Max Kills in Single Turn 1 | 1 1 Gunslinging . | . . Exploded . | . . Melee . | . . Uniques/NPCs Destroyed . | . . Combat | -11 -10 -------- Run | Yrd Mat Hostile Shots Fired 70 | . 70 Missed 12 | . 12 Damage Taken 839 | . 839 Core 267 | . 267 Absorbed by Shields . | . . Core Remaining (%) 100 | 100 . Volleys Fired 53 | 9 44 Largest 2 | 2 1 Hottest 90 | 90 50 Shots Fired 54 | 10 44 Gun 54 | 10 44 Cannon . | . . Launcher . | . . Special . | . . Kinetic . | . . Thermal 53 | 9 44 Explosive . | . . Electromagnetic 1 | 1 . Robot Hit Streak 7 | 3 7 Robot Miss Streak 2 | 2 2 Penetration Max . | . . Secondary Targets . | . . Shots Hit Robots 36 | 5 31 Core Hits 16 | 1 15 Critical Kills . | . . Critical Parts Destroyed . | . . Critical Strikes 3 | 1 2 Burn 3 | 1 2 Melee Attacks . | . . Impact . | . . Slashing . | . . Piercing . | . . Sneak Attacks . | . . Combat Hostiles . | . . Follow-up Attacks . | . . Damage Inflicted 521 | 62 459 Guns 502 | 62 440 Cannons . | . . Explosions . | . . Melee . | . . Ramming 19 | . 19 Kinetic . | . . Thermal 502 | 62 440 Explosive . | . . Electromagnetic . | . . Impact . | . . Slashing . | . . Piercing . | . . Highest Corruption 7 | . 7 Average Corruption 7 | . 7 Corruption Purged . | . . Corruption Blocked . | . . Overload Shots . | . . Overflow Damage . | . . Projectiles . | . . Explosions . | . . Melee . | . . Knockbacks . | . . Impact . | . . Kinetic . | . . Secondary . | . . Self-Inflicted Damage 19 | . 19 Shots . | . . Rammed . | . . Targets Rammed . | . . Kicked . | . . Crushed . | . . Highest Temperature 184 | 50 184 Average Temperature 53 | 22 59 Received Heat Transfer 489 | . 489 Siege Activations . | . . Robots Corrupted . | . . Combat Hostiles . | . . Parts Fried . | . . Impact Corruptions . | . . Robots Melted . | . . Combat Hostiles . | . . Parts Melted 3 | . 3 Heat Transferred 1702 | 259 1443 Parts Sabotaged . | . . Parts Stolen . | . . Parts Stripped . | . . Power Chain Reactions . | . . Alert | -11 -10 ------- Run | Yrd Mat Peak Influence 104 | 5 104 Initial 3 | . 3 Average 33 | 2 36 Maximum Alert Level . | . . Low Security (%) 100 | 100 100 Level 1 . | . . Level 2 . | . . Level 3 . | . . Level 4 . | . . Level 5 . | . . High Security . | . . Max Security . | . . Squads Dispatched . | . . Investigation . | . . Extermination . | . . Reinforcement . | . . Assault . | . . Garrison . | . . Intercept . | . . Searches Triggered . | . . Construction Impeded . | . . Haulers Reinforced . | . . Active Scanning Responses . | . . Cargo Convoy Interrupts . | . . Stealth | -11 -10 --------- Run | Yrd Mat Distress Signals 1 | . 1 Communications Jammed . | . . Distress Signals . | . . Times Spotted 15 | . 15 Peak Tracking Total 5 | . 5 Tactical Retreats . | . . Traps | -11 -10 ------- Run | Yrd Mat Traps Triggered . | . . Indirectly . | . . Trap Hack Attempts . | . . Triggered . | . . Disarmed . | . . Reprogrammed . | . . Reused . | . . Traps Extracted . | . . Installed . | . . Triggered . | . . Machines | -11 -10 ---------- Run | Yrd Mat Machines Disabled . | . . Max in Single Turn . | . . Machines Repaired . | . . Machines Dismantled . | . . Machines Sabotaged . | . . Overloaded Fab Kills . | . . Hacking | -11 -10 --------- Run | Yrd Mat Machines Accessed 3 | . 3 Terminals 2 | . 2 Fabricators . | . . Repair Stations . | . . Recycling Units 1 | . 1 Scanalyzers . | . . Garrison Access . | . . Total Hacks 7 | . 7 Successful 1 | . 1 Failed 6 | . 6 Catastrophic 1 | . 1 Database Lockouts . | . . Manual 7 | . 7 Terminals 5 | . 5 Fabricators . | . . Repair Stations . | . . Recycling Units 2 | . 2 Scanalyzers . | . . Garrison Access . | . . Terminal Hacks . | . . Fabricator Hacks . | . . Repair Station Hacks . | . . Recycling Unit Hacks . | . . Scanalyzer . | . . Garrison Access Hacks . | . . Unauthorized Hacks 1 | . 1 Terminals . | . . Fabricators . | . . Repair Stations . | . . Recycling Units 1 | . 1 Mask 1 | . 1 Scanalyzers . | . . Garrison Access . | . . Data Cores Recovered . | . . Used . | . . Hacking Detections 3 | . 3 Full Trace Events . | . . Feedback Events . | . . Feedback Blocked . | . . Robot Schematics Acquired . | . . Robots Built . | . . Authchips . | . . Time . | . . Total Robot Build Rating . | . . Part Schematics Acquired . | . . Parts Built . | . . Authchips . | . . Time . | . . Total Part Build Rating . | . . Parts Repaired . | . . Time . | . . Parts Recycled . | . . Recycled Matter . | . . Retrieved Matter . | . . Retrieved Components . | . . Parts Scanalyzed . | . . Part Schematics Acquired . | . . Parts Damaged . | . . Bothacking | -11 -10 ------------ Run | Yrd Mat Used RIF Installer . | . . Robots Hacked . | . . Non-combat . | . . Combat . | . . Robot Hacks Applied . | . . Relay Couplers Released . | . . Fabnet Peak Effective % . | . . Robots Rewired . | . . Allies Hacked . | . . Hacks Repelled . | . . Allies | -11 -10 -------- Run | Yrd Mat Total Allies . | . . Largest Group . | . . Highest-Rated Group . | . . Highest-Rated Ally . | . . Total Orders . | . . Ally Attacks . | . . Total Damage . | . . Kills . | . . Allies Corrupted . | . . Allies Melted . | . . Intel | -11 -10 ------- Run | Yrd Mat Robot Analysis Total . | . . Derelict Logs Recovered . | . . Drone Launches . | . . Drone Recoveries . | . . Exploration | -11 -10 ------------- Run | Yrd Mat Turns Passed 722 | 70 652 Spaces Moved 210 | 40 170 Core . | . . Treads 152 | . 152 Legs 58 | 40 18 Wheels . | . . Hover . | . . Flight . | . . Fastest Speed 120 | 120 120 Average Speed 266 | 120 301 Slowest Speed 480 | 120 480 Overloaded Moves . | . . Propulsion Burnouts . | . . Robots Hopped . | . . Cave-ins Triggered . | . . Exploration Rate (%) 22 | 3 42 Regions Visited 1 Branch Regions . Pre-discovered Areas . | . . Known Exits Taken . | . . Unknown Exits Taken 1 | 1 . Scrap Searched . | . . Spaces Dug . | . . Terrain Destroyed . | . . Melee . | . . Projectile . | . . AOE . | . . Terrain Rammed 5 | . 5 Walls Destroyed . | . . Machines Disabled . | . . Actions | -11 -10 --------- Run | Yrd Mat Total 294 | 53 241 Wait 10 | . 10 Move 209 | 39 170 Hop . | . . Pick Up 5 | 1 4 Fast Attach 2 | 1 1 Attach 1 | . 1 Detach . | . . Swap 3 | . 3 Drop 6 | 3 3 Fire 53 | 9 44 Melee . | . . Ram 5 | . 5 Kick . | . . Crush . | . . Escape Stasis . | . . Rewire . | . . Trap . | . . Miscellaneous . | . . Route ------- -11/Scrapyard -10/Materials (discovered 1 exit: [*Mat]) History --------- Turn | Location | Event 1 | -11/Scrapyard | Discovered new exit (range 1) 71 | -11/Scrapyard | Entered Materials 302 | -10/Materials | Build established: Mutant 562 | -10/Materials | Discovered new exit (range 16) 708 | -10/Materials | Core integrity fell below 50% 720 | -10/Materials | Core integrity fell below 20% 723 | -10/Materials | Destroyed by G-47 Trooper with Particle Gun Last Messages --------------- 00695_ K-01 Serf collects debris. 00699_ Rammed Wall. 00699_ Destabilizing: Core damaged (-7). 00699_ Seismic Detector broken. 00699_ Destabilizing: Short circuit. 00700_ K-01 Serf collects debris. 00704_ Rammed Wall. 00704_ Med. Laser broken. 00704_ Destabilizing: Short circuit. 00709_ Rammed Wall. 00709_ Broken Med. Laser destroyed. 00709_ System corrupted by crushing effect (+5). 00709_ Destabilizing: Core damaged (-12). 00709_ Destabilizing: System corrupted (+2). 00709_ K-01 Serf destroyed. 00709_ K-01 Serf collects debris. 00714_ Rammed Wall. 00714_ Lgt. Treads broken. 00714_ Destabilizing: Short circuit. 00715_ K-01 Serf collects debris. Map ----- +----------------------------------------------------+ | ?????????????????????????????????????????????????? | | ?????????????????????????????????????????????????? | | ?????????????????????????????????????????????????? | | ?????????????????????????????????????????????????? | | ?????????????????????????????????????????????????? | | ?????????????????????????????????????????????????? | | ?????????????????????????????????????????????????? | | ????????????????????????????????????????#########? | | ????????????????????????????????????????# """ #? | | ?????????????????????????###########????# "Y" #? | | ?????????????????????????# ###### #? | | ?????????????????????????# + =%+ #? | | ?????????????????????????# ###### ! = #? | | ?????????????????????????# #?#######+##### | | ?????????????????????????# #?# %= | | ?????????????????????????# #?# | | ?????????????????????????# #?# | | ?????????????????????????# #?# | | ?????????????????????????#####+#####?# | | ???????????????????????????# ##### | | ???????????????????????????# | | ???????????????????????????# !! | | ???????????????????????????# !%!! | | ????????????????# ?????????# #####!!! | | ????????????##### w######### ########+####### | | ????????????# k %=%!@ g #?# ### | | ????????????# ==!*kkk #?# """ """ # | | ????????????+ *!g= ! #?# """ """ # | | ????????????# ######## #?# """ """ # " | | ????????????# ????????# #?# # " | | ??????????? ??????????# ################ " | | ???????????? ???????????# !!#??????????# | | ???????????? ?????????????# !!#??????????### | | ????????????????????????????# !#??????????# | | ????????????????????????????# !!#??????????# | | ????????????????????????????# !!#??????????# | | ????????????????????????????# !!#??????????# | | ?????????????????????????#### #####??????????# | | ????????????????????????##! #??????????????# | | ????????????????????????#! #??????????????# | | ????????????????????????#! #??????????????# | | ????????????????????????#! +??????????????# | | ????????????????????????#! < #??????????????# | | ????????????????????????##! #??????????????# | | ?????????????????????????########??????????????# | | ???????????????????????????????????????????????### | | ?????????????????????????????????????????????????? | | ?????????????????????????????????????????????????? | | ?????????????????????????????????????????????????? | | ?????????????????????????????????????????????????? | +----------------------------------------------------+ Best States ------------- Heat Dissipation 25 Energy Generation 10 Energy Capacity 125 Matter Stores 300 Matter Capacity 300 Sight Range 16 Terrain Scan Density 10 Evasion (%) 55 Recoil Reduction 2 Item Schematics ----------------- None Robot Schematics ------------------ None Fabricated ------------ Nothing Alien Tech Used ----------------- None Achievements -------------- None Challenges ------------ None Game ------ Seed CarbideFieldBroadsword Manual? 0 Play Time 00:04:27 Cumulative 96.7 hours Start 2024.09.17 @ 03:33:23 End 2024.09.17 @ 03:37:34 Sessions 1 Manual Loads 0 Difficulty Rogue Special Mode None Game No. 135 Rogue 135 Adventurer 0 Explorer 0 Win Type - Total 1 Types 1/0/0/0/0/0/0/0/0 Lore% 20 Gallery% 56 Achievement% 44 Wizard Run 0 Options --------- Layout 0 ASCII 0 Keyboard 0 Movement Mouse Keybinds 1 Fullscreen 1 Font 18/TerminusBold Map View 76x50 Zoom Use 0% Tactical HUD 1 Map Filters NONE Filters NONE Steam 1 RUN: 05aef9eb-9eb5-4be2-ad5b-8c9b328b4797